bitfinex/quotes_BTCUSD_20250417
["timestamp","ask_amount","ask_price","bid_price","bid_amount"]
[1744922633102,0.11944791,84820.0,84819.0,0.23579581]
[1744922635609,0.0008432,84821.0,84820.0,0.57579344]
[1744922637859,0.0008432,84821.0,84820.0,0.58466857]
[1744922641820,0.0008432,84821.0,84820.0,0.58666856]
[1744922652188,1e-08,84821.0,84820.0,0.63306856]
[1744922652390,0.0008432,84848.0,84845.0,0.23572396]
[1744922652592,0.00013481,84846.0,84845.0,0.23572396]
[1744922657141,0.00013481,84846.0,84844.0,0.23572674]
[1744922657359,0.00013481,84846.0,84845.0,0.23572396]
[1744922659878,0.00013481,84846.0,84845.0,0.25156045]
[1744922665936,0.00013481,84846.0,84845.0,0.59156045]
[1744922671821,0.00013481,84846.0,84845.0,0.59256044]
[1744922672427,0.00013481,84846.0,84845.0,0.64945613]
[1744922674505,0.00013481,84846.0,84845.0,0.65045613]
[1744922674710,0.00013481,84846.0,84845.0,0.69875613]
[1744922677422,0.00013481,84846.0,84845.0,0.83715613]
[1744922682021,0.0008428,84855.0,84854.0,0.57569896]
[1744922682212,0.0028442,84859.0,84854.0,0.57569896]
[1744922682386,0.0008432,84872.0,84862.0,0.23567674]
[1744922682581,0.0008432,84872.0,84862.0,0.71639308]
[1744922682787,1e-08,84863.0,84862.0,0.76213674]
[1744922682990,0.02915581,84869.0,84868.0,0.57566008]
[1744922690058,0.02915581,84869.0,84868.0,0.5843566]
[1744922691494,0.02915581,84869.0,84868.0,0.58535659]
[1744922702474,0.0008432,84872.0,84871.0,0.57565175]
[1744922702697,0.0009779,84872.0,84871.0,0.57565175]
[1744922713570,0.0009779,84872.0,84871.0,0.41217546]
[1744922720713,1.0009779,84872.0,84871.0,0.41217546]
[1744922731812,1.0009779,84872.0,84871.0,0.41317545]
[1744922732662,1.3212536,84872.0,84871.0,0.00099999]
[1744922732826,1.45197478,84872.0,84871.0,0.00099999]
[1744922734526,1.45317678,84872.0,84871.0,0.00099999]
[1744922735882,1.86597678,84872.0,84871.0,0.00099999]
[1744922740829,1.86597678,84872.0,84867.0,0.05799863]
[1744922740830,1.86697677,84872.0,84867.0,0.05799863]
[1744922741020,0.11944791,84871.0,84867.0,0.05799863]
[1744922741241,0.11944791,84871.0,84868.0,0.23566007]
[1744922742243,0.35509995,84871.0,84868.0,0.23566007]
[1744922742482,0.35509995,84871.0,84868.0,0.24744307]
[1744922742923,0.35509995,84871.0,84867.0,0.01178314]
[1744922743121,0.23565581,84870.0,84867.0,0.01178314]
[1744922743368,0.11944791,84869.0,84867.0,0.24744496]
[1744922744718,0.11944791,84869.0,84868.0,0.23566008]
[1744922744940,0.11944791,84869.0,84868.0,0.06248912]
[1744922745177,0.23566809,84866.0,84862.0,0.23567613]
[1744922745399,0.11944791,84865.0,84863.0,0.23567144]
[1744922746245,0.11944791,84865.0,84864.0,0.23567119]
[1744922746552,0.11944791,84865.0,84862.0,0.01178383]
[1744922746705,0.11944791,84865.0,84863.0,0.23567123]
[1744922746912,0.11944791,84865.0,84861.0,0.35178397]
[1744922747111,0.11944791,84865.0,84863.0,0.23567381]
[1744922747930,0.11944791,84865.0,84864.0,0.23567119]
[1744922748987,0.11944791,84865.0,84863.0,0.23567381]
[1744922748988,1.41697989,84872.0,84871.0,0.23565175]
[1744922749199,1.00417989,84872.0,84871.0,0.23565175]
[1744922751239,1.0021799,84872.0,84871.0,0.23665175]
[1744922754699,1.00317989,84872.0,84871.0,0.23665175]
[1744922755238,1.00317989,84872.0,84871.0,0.57665175]
[1744922757553,0.47343686,84872.0,84871.0,0.67575175]
[1744922761826,0.47243687,84872.0,84871.0,0.67575175]
[1744922762062,0.47243687,84872.0,84871.0,0.68470258]
[1744922765332,0.0008428,84880.0,84879.0,0.57562954]
[1744922765557,0.0004213,84903.0,84898.0,0.5755768]
[1744922765766,0.00188748,84899.0,84898.0,0.5755768]
[1744922766817,0.00188748,84899.0,84898.0,0.5899984]
[1744922768938,0.40680942,84899.0,84898.0,0.0144216]
[1744922769139,0.29627776,84891.0,84886.0,0.24638908]
[1744922769392,0.0961,84888.0,84884.0,0.01178078]
[1744922769537,0.11944791,84887.0,84884.0,0.26232185]
[1744922769746,0.11944791,84887.0,84884.0,0.01178078]
[1744922769970,0.11944791,84887.0,84884.0,0.24739451]
[1744922770217,0.11944791,84887.0,84886.0,0.23561011]
[1744922770597,0.11944791,84887.0,84884.0,0.24739577]
[1744922770777,0.11944791,84887.0,84884.0,0.01178078]
[1744922771202,0.11944791,84887.0,84885.0,0.23561017]
[1744922774358,0.11944791,84887.0,84886.0,0.23561011]
[1744922774877,0.11944791,84887.0,84884.0,0.01178078]
[1744922775078,0.11944791,84887.0,84884.0,0.24739635]
[1744922775740,0.01178078,84884.0,84881.0,0.24740517]
[1744922775883,0.11944791,84883.0,84882.0,0.24740223]
[1744922776843,0.01177939,84894.0,84893.0,0.23559068]
[1744922776844,0.0487,84894.0,84893.0,0.23559068]
[1744922777146,0.16814791,84894.0,84893.0,0.23559068]
[1744922777819,0.11944791,84894.0,84893.0,0.23559068]
[1744922791749,0.00288748,84899.0,84898.0,0.2355768]
[1744922791964,0.12233539,84899.0,84898.0,0.2355768]
[1744922792935,0.00288748,84899.0,84898.0,0.2355768]
[1744922798054,0.0004213,84903.0,84902.0,0.57556571]
[1744922798385,0.00087019,84903.0,84902.0,0.57556571]
[1744922800640,1e-08,84906.0,84905.0,0.62235738]
[1744922804049,1e-08,84906.0,84905.0,0.57555738]
[1744922810590,0.11944792,84906.0,84905.0,0.57555738]
[1744922811198,0.11944792,84906.0,84905.0,0.23555738]
[1744922812240,0.11944792,84906.0,84905.0,0.23755737]
[1744922813941,0.10944792,84906.0,84905.0,0.23755737]
[1744922816160,0.002,84919.0,84918.0,0.23552132]
[1744922816381,0.12144791,84919.0,84918.0,0.23552132]
[1744922819494,0.12144791,84919.0,84918.0,0.25046116]
[1744922820642,0.002,84919.0,84918.0,0.25046116]
[1744922821651,0.002,84919.0,84918.0,0.25246115]
[1744922823773,0.002,84919.0,84918.0,0.59246115]
[1744922824194,0.002,84919.0,84918.0,0.35693983]
[1744922824402,0.002,84919.0,84918.0,0.59246115]
[1744922825411,0.002,84919.0,84918.0,0.60217774]
[1744922827717,0.0008422,84931.0,84922.0,0.24728296]
[1744922827926,0.0004214,84937.0,84932.0,0.5754825]
[1744922830320,1e-08,84937.0,84936.0,0.62497141]
[1744922830491,1e-08,84940.0,84939.0,0.57546309]
[1744922831201,2e-08,84949.0,84948.0,0.23543815]
[1744922834062,2e-08,84949.0,84948.0,0.23779222]
[1744922836305,2e-08,84949.0,84948.0,0.23543815]
[1744922837286,2e-08,84949.0,84948.0,0.23779222]
[1744922842150,2e-08,84949.0,84948.0,0.23543815]
[1744922843859,2e-08,84949.0,84948.0,0.23779222]
[1744922844998,2e-08,84949.0,84948.0,0.23543815]
[1744922845201,2e-08,84949.0,84947.0,0.23544035]
[1744922845924,2e-08,84949.0,84948.0,0.23543815]
[1744922847039,2e-08,84949.0,84948.0,0.23779222]
[1744922848266,2e-08,84949.0,84948.0,0.23543815]
[1744922849219,2e-08,84949.0,84948.0,0.23779222]
[1744922852376,2e-08,84949.0,84948.0,0.23543815]
[1744922854215,0.00100002,84949.0,84948.0,0.57543815]
[1744922854559,0.04800002,84949.0,84948.0,0.57543815]
[1744922857951,0.16744793,84949.0,84944.0,0.01177246]
[1744922858175,0.11944791,84948.0,84947.0,0.23544047]
[1744922859159,0.11944791,84948.0,84944.0,0.01177246]
[1744922859378,0.05717204,84947.0,84941.0,0.01177287]
[1744922859624,0.0471,84942.0,84940.0,0.23546012]
[1744922859842,0.11944791,84941.0,84940.0,0.23545982]
[1744922860094,0.11944791,84941.0,84939.0,0.24723605]
[1744922860322,0.23546634,84938.0,84934.0,0.01177384]
[1744922860558,0.0117737,84935.0,84931.0,0.01177426]
[1744922860720,0.11944791,84934.0,84932.0,0.2354812]
[1744922862020,0.11944791,84934.0,84933.0,0.23547973]
[1744922864308,0.0454,84947.0,84945.0,0.23544646]
[1744922864466,0.11944791,84946.0,84945.0,0.23544646]
[1744922864671,0.0464,84945.0,84944.0,0.24722153]
[1744922864871,0.16584791,84945.0,84944.0,0.24722153]
[1744922867163,0.11944791,84945.0,84944.0,0.24722153]
[1744922869104,0.00100002,84949.0,84948.0,0.23543815]
[1744922871350,2e-08,84949.0,84948.0,0.23543815]
[1744922877740,2e-08,84949.0,84948.0,0.57543815]
[1744922893205,2e-08,84949.0,84948.0,0.62633815]
[1744922893355,0.0004214,84968.0,84966.0,0.23538827]
[1744922893553,0.0004214,84968.0,84967.0,0.39225365]
[1744922893758,0.00055599,84968.0,84967.0,0.39865856]
[1744922894333,0.0461,84988.0,84978.0,0.57535503]
[1744922895783,0.4591,84994.0,84978.0,0.57535503]
[1744922895784,0.0473,84993.0,84978.0,0.58906185]
[1744922896203,0.0484,84998.0,84978.0,0.58906185]
[1744922900954,0.0484,84998.0,84978.0,0.63656185]
[1744922901158,0.005,85000.0,84991.0,0.35176595]
[1744922901297,0.005,85000.0,84999.0,0.57529688]
[1744922901660,0.00544845,85000.0,84999.0,0.57529688]
[1744922902236,0.0004211,85002.0,85001.0,0.57529134]
[1744922902431,0.00055558,85002.0,85001.0,0.57529134]
[1744922903004,0.00055558,85002.0,85001.0,0.58424312]
[1744922907990,0.00155558,85002.0,84997.0,0.01176512]
[1744922908215,0.12100349,85002.0,84998.0,0.01176498]
[1744922908413,0.12100349,85002.0,84999.0,0.01176484]
[1744922908613,0.12100349,85002.0,85000.0,0.23529411]
[1744922909178,0.00155558,85002.0,85000.0,0.23529411]
[1744922911525,0.00155558,85002.0,84999.0,0.01176484]
[1744922911730,0.11944791,85001.0,84998.0,0.01176498]
[1744922911931,0.11944791,85001.0,85000.0,0.23529411]
[1744922912874,0.11944791,85001.0,85000.0,0.24989411]
[1744922913440,0.00155558,85002.0,85000.0,0.24989411]
[1744922914499,0.00155558,85002.0,85000.0,0.0146]
[1744922914704,0.00155558,85002.0,85000.0,0.24989411]
[1744922915267,0.01737678,85006.0,85005.0,0.57528027]
[1744922918380,0.01737678,85006.0,85005.0,0.70926903]
[1744922918560,0.002,85009.0,85008.0,0.57527197]
[1744922918734,0.002,85009.0,85008.0,0.69471988]
[1744922919343,1e-08,85009.0,85008.0,0.70926073]
[1744922920743,1e-08,85009.0,85008.0,0.57527197]
[1744922920948,1e-08,85009.0,85008.0,0.57597197]
[1744922928555,1e-08,85009.0,85008.0,0.57697197]
[1744922930908,0.0466,85035.0,85033.0,0.2352028]
[1744922931138,0.00055543,85034.0,85033.0,0.2352028]
[1744922932263,0.00055543,85034.0,85033.0,0.24907728]
[1744922945527,0.02252875,85034.0,85033.0,0.24907728]
[1744922947610,0.00055543,85034.0,85033.0,0.24907728]
[1744922948343,0.12000334,85034.0,85033.0,0.24907728]
[1744922952355,0.12000334,85034.0,85033.0,0.25007728]
[1744922953214,0.12000334,85034.0,85033.0,0.2362028]
[1744922956169,0.00055543,85034.0,85033.0,0.2362028]
[1744922956606,0.00055543,85034.0,85033.0,0.57955462]
[1744922956806,0.00055543,85034.0,85033.0,0.5772028]
[1744922969492,0.00055543,85034.0,85033.0,0.6261028]
[1744922970182,0.00055543,85034.0,85033.0,0.5772028]
[1744922977023,0.16860334,85034.0,85033.0,0.002]
[1744922977247,0.58240334,85034.0,85033.0,0.002]
[1744922977581,0.61538463,85034.0,85033.0,0.002]
[1744922980818,0.85058466,85034.0,85033.0,0.002]
[1744922981231,0.61538463,85034.0,85033.0,0.2372028]
[1744922981812,0.60439086,85034.0,85033.0,0.2372028]
[1744922982224,0.60439086,85034.0,85033.0,0.002]
[1744922984812,0.61537753,85034.0,85033.0,0.002]
[1744922987204,0.85057756,85034.0,85033.0,0.002]
[1744922988334,0.61537753,85034.0,85033.0,0.002]
[1744922988714,0.61537753,85034.0,85033.0,0.2372028]
[1744922989324,0.85057756,85034.0,85033.0,0.002]
[1744922991176,0.23521155,85030.0,85028.0,0.01176083]
[1744922991520,0.11944791,85029.0,85028.0,0.01176083]
[1744922991896,0.1524221,85029.0,85028.0,0.01176083]
[1744922992257,0.1524221,85029.0,85028.0,0.24697746]
[1744922992936,0.1524221,85029.0,85028.0,0.01176083]
[1744922993354,0.1524221,85029.0,85025.0,0.24698488]
[1744922993355,0.39939675,85029.0,85025.0,0.01176124]
[1744922993541,0.39939706,85029.0,85026.0,0.24698084]
[1744922993760,0.01176166,85022.0,84998.0,1.2926]
[1744922993963,0.30872791,85021.0,85016.0,0.01176249]
[1744922994117,0.01176193,85020.0,85016.0,0.01176249]
[1744922994327,0.14143543,85019.0,85016.0,0.24701185]
[1744922994527,0.37667735,85019.0,85016.0,0.24701185]
[1744922994724,0.23525899,85013.0,85009.0,0.24703088]
[1744922994986,0.11944791,85012.0,85011.0,0.23526367]
[1744922995375,0.14143543,85012.0,85011.0,0.23526367]
[1744922995754,0.11944791,85012.0,85011.0,0.23526367]
[1744922996452,0.4128,85022.0,85020.0,0.23523876]
[1744922996840,0.4128,85022.0,85021.0,0.235236]
[1744922997012,0.53224791,85022.0,85021.0,0.235236]
[1744923000044,0.11944791,85022.0,85021.0,0.235236]
[1744923001298,0.11944791,85022.0,85020.0,0.23523876]
[1744923001491,0.11944791,85021.0,85020.0,0.23523876]
[1744923001697,0.11944791,85021.0,85020.0,0.001]
[1744923001899,0.11944791,85021.0,85020.0,0.23623876]
[1744923004205,0.14141708,85021.0,85020.0,0.001]
[1744923005013,0.11944791,85021.0,85020.0,0.001]
[1744923005968,0.14142983,85021.0,85020.0,0.001]
[1744923006124,0.37666583,85021.0,85020.0,0.001]
[1744923006521,0.38765742,85021.0,85020.0,0.001]
[1744923006722,0.15242142,85021.0,85020.0,0.001]
[1744923007097,0.15242142,85021.0,85020.0,0.23623876]
[1744923008028,0.15242142,85021.0,85020.0,0.23523876]
[1744923008906,0.1304395,85021.0,85020.0,0.23523876]
[1744923009327,0.1304395,85021.0,85018.0,0.24700425]
[1744923009533,0.11944791,85021.0,85018.0,0.24700425]
[1744923009735,0.11944791,85021.0,85019.0,0.23524124]
[1744923009942,0.11944791,85021.0,85020.0,0.23523876]
[1744923013387,0.11944791,85021.0,85019.0,0.23524124]
[1744923014426,0.4128,85028.0,85027.0,0.2352194]
[1744923014647,0.11944791,85028.0,85027.0,0.2352194]
[1744923026950,0.00055543,85034.0,85028.0,0.23521663]
[1744923027571,0.00055543,85034.0,85028.0,0.28361663]
[1744923027843,0.00055543,85034.0,85028.0,0.62361663]
[1744923030518,0.00055543,85034.0,85028.0,0.57521663]
[1744923033326,0.00055543,85034.0,85028.0,0.23521663]
[1744923045510,0.12054781,85029.0,85028.0,0.23521663]
[1744923054275,0.06066097,85027.0,85016.0,0.01176249]
[1744923054466,0.01176263,85015.0,85009.0,0.01176346]
[1744923054664,0.11944791,85014.0,85013.0,0.23525655]
[1744923055163,0.13044386,85014.0,85013.0,0.23525655]
[1744923056223,0.13044386,85014.0,85010.0,0.23526551]
[1744923056448,0.13044386,85014.0,85011.0,0.23526268]
[1744923056737,0.13044386,85014.0,85013.0,0.23525813]
[1744923057168,0.11944791,85014.0,85013.0,0.23525813]
[1744923057296,0.14164,85021.0,85020.0,0.23523876]
[1744923057498,0.11944791,85021.0,85020.0,0.23523876]
[1744923058252,0.11944791,85021.0,85019.0,0.23524127]
[1744923058454,0.11944791,85020.0,85019.0,0.24700334]
[1744923061225,0.13120984,85020.0,85015.0,0.24701274]
[1744923061428,0.01098301,85019.0,85015.0,0.24701274]
[1744923061746,0.11944791,85018.0,85015.0,0.24701274]
[1744923062084,0.11944791,85018.0,85016.0,0.23524838]
[1744923062283,0.11944791,85018.0,85017.0,0.23524706]
[1744923063540,0.11944791,85018.0,85016.0,0.23524838]
[1744923064246,0.11944791,85018.0,85017.0,0.23524706]
[1744923073226,0.11944791,85018.0,85015.0,0.01176263]
[1744923073767,0.11944791,85018.0,85017.0,0.23524706]
[1744923077530,0.11944791,85018.0,85017.0,0.08233886]
[1744923078633,0.23519682,85036.0,85027.0,0.2352194]
[1744923078634,0.0010999,85029.0,85027.0,0.2352194]
[1744923078859,0.11944791,85028.0,85027.0,0.2352194]
[1744923082246,0.23521985,85027.0,85020.0,0.24699257]
[1744923082444,0.11944791,85026.0,85022.0,0.23523323]
[1744923082691,0.11944791,85026.0,85023.0,0.23523029]
[1744923083107,0.23522504,85025.0,85021.0,0.24699732]
[1744923083321,0.11944791,85024.0,85021.0,0.24699732]
[1744923083543,0.13044267,85024.0,85021.0,0.24699732]
[1744923083923,0.01176152,85023.0,85019.0,0.24700131]
[1744923084124,0.11944791,85022.0,85019.0,0.24700131]
[1744923084335,0.11944791,85022.0,85019.0,0.01176207]
[1744923085205,0.13120957,85022.0,85019.0,0.01176207]
[1744923086767,0.2352443,85018.0,85017.0,0.001]
[1744923086973,0.35469221,85018.0,85017.0,0.001]
[1744923087353,0.36568897,85018.0,85017.0,0.001]
[1744923097274,0.41098897,85018.0,85017.0,0.001]
[1744923097796,0.43298271,85018.0,85017.0,0.001]
[1744923099442,0.43398271,85018.0,85017.0,0.001]
[1744923108336,0.84678271,85018.0,85017.0,0.001]
[1744923111285,0.23526533,85011.0,85009.0,0.01176346]
[1744923111423,0.55424165,85010.0,85009.0,0.01176346]
[1744923111619,0.78950808,85010.0,85008.0,0.47102808]
[1744923111813,0.78950808,85010.0,85008.0,0.23596137]
[1744923112065,0.0329905,85009.0,85008.0,0.23596137]
[1744923112265,0.15243841,85009.0,85008.0,0.00069]
[1744923112683,0.13044467,85009.0,85008.0,0.00069]
[1744923113445,0.36571387,85009.0,85008.0,0.00069]
[1744923113835,0.38772392,85009.0,85008.0,0.00069]
[1744923114246,0.38872392,85009.0,85008.0,0.00069]
[1744923114681,0.81606477,85009.0,85008.0,0.00069]
[1744923115507,0.98181268,85009.0,85008.0,0.00069]
[1744923115710,0.86236477,85009.0,85008.0,0.00069]
[1744923115927,0.87516229,85009.0,85008.0,0.00069]
[1744923120087,0.56625472,85009.0,85008.0,0.00069]
[1744923120296,0.80152392,85009.0,85008.0,0.00069]
[1744923120501,0.56625472,85009.0,85008.0,0.23596197]
[1744923120832,0.56625472,85009.0,85008.0,0.00069]
[1744923121511,0.54424467,85009.0,85008.0,0.00069]
[1744923121743,0.54324467,85009.0,85008.0,0.00069]
[1744923122197,0.77851387,85009.0,85008.0,0.00069]
[1744923125114,0.80047466,85009.0,85008.0,0.00069]
[1744923127433,0.77851387,85009.0,85008.0,0.00069]
[1744923131787,0.80048147,85009.0,85008.0,0.00069]
[1744923140904,0.23528054,85005.0,85002.0,0.05262222]
[1744923141122,0.11944791,85004.0,85003.0,0.23528581]
[1744923141711,0.11944791,85004.0,85002.0,0.05262222]
[1744923142205,0.1194927,85004.0,85002.0,0.05262222]
[1744923142405,0.1194927,85004.0,85003.0,0.23528581]
[1744923142573,0.1194927,85004.0,85003.0,0.2470501]
[1744923143474,0.1194927,85004.0,85001.0,0.01176456]
[1744923143652,0.13125685,85004.0,85001.0,0.01176456]
[1744923143872,0.36654235,85004.0,85001.0,0.24705549]
[1744923144082,0.01099583,85003.0,85001.0,0.24705549]
[1744923144322,0.11944791,85002.0,85001.0,0.24705549]
[1744923144510,0.35473649,85002.0,84999.0,0.01176484]
[1744923144927,0.11944791,85002.0,85000.0,0.23529158]
[1744923145685,0.23529804,84999.0,84996.0,0.24707005]
[1744923145889,0.0117647,85000.0,84998.0,0.23529886]
[1744923146122,0.23529425,85000.0,84997.0,0.24706527]
[1744923146325,0.24705617,85001.0,84998.0,0.23529959]
[1744923146455,0.02199967,84999.0,84998.0,0.23529959]
[1744923147034,0.23529965,84998.0,84997.0,0.001]
[1744923147240,0.35474756,84998.0,84997.0,0.001]
[1744923147644,0.37674723,84998.0,84997.0,0.001]
[1744923147881,0.38774706,84998.0,84997.0,0.001]
[1744923150236,0.15244741,84998.0,84997.0,0.001]
[1744923150508,0.0329995,84998.0,84997.0,0.62180242]
[1744923150710,0.0329995,84998.0,84997.0,0.67050242]
[1744923151119,4.479e-05,85004.0,85003.0,0.62398581]
[1744923160758,4.479e-05,85004.0,85003.0,0.62608719]
[1744923166043,0.19704981,85019.0,85016.0,0.24701158]
[1744923166245,0.11944791,85018.0,85016.0,0.24701158]
[1744923167099,0.01098136,85017.0,85016.0,0.24701158]
[1744923167265,0.13042927,85017.0,85016.0,0.24701158]
[1744923168451,0.13048723,85017.0,85016.0,0.24701158]
[1744923168680,0.13048723,85017.0,85016.0,0.01176249]
[1744923168877,0.13048723,85017.0,85014.0,0.2352546]
[1744923169052,0.13042927,85016.0,85014.0,0.2352546]
[1744923169948,0.13042927,85016.0,85008.0,0.23526958]
[1744923170149,0.0117629,85013.0,85009.0,0.24703053]
[1744923170333,0.0117629,85013.0,85010.0,0.01176332]
[1744923170539,0.01176276,85014.0,85011.0,0.01176318]
[1744923170685,0.13121067,85014.0,85011.0,0.01176318]
[1744923170882,0.01098233,85013.0,85011.0,0.01176318]
[1744923171120,0.01098233,85013.0,85010.0,0.06875665]
[1744923171557,0.01098233,85013.0,85011.0,0.01176318]
[1744923171921,0.13121067,85014.0,85011.0,0.01176318]
[1744923172127,0.11944791,85014.0,85011.0,0.24702502]
[1744923172458,0.13121067,85014.0,85011.0,0.01176318]
[1744923172859,0.11944791,85013.0,85011.0,0.01176318]
[1744923173288,0.11944791,85013.0,85012.0,0.2352609]
[1744923173446,0.11944791,85013.0,85010.0,0.24702696]
[1744923174482,0.11944791,85013.0,85011.0,0.23526101]
[1744923174683,0.0109839,85012.0,85011.0,0.23526101]
[1744923174878,0.13043181,85012.0,85011.0,0.23526101]
[1744923180783,0.15244439,85012.0,85011.0,0.23526101]
[1744923182718,0.13043181,85012.0,85011.0,0.23526101]
[1744923183594,5.796e-05,85017.0,85016.0,0.23524983]
[1744923183796,5.796e-05,85017.0,85016.0,0.57524983]
[1744923187433,0.0010999,85029.0,85028.0,0.57521663]
[1744923187805,0.00114469,85029.0,85028.0,0.57521663]
[1744923188210,0.00114469,85029.0,85028.0,0.62391663]
[1744923204561,0.00114469,85029.0,85028.0,0.57521663]
[1744923206544,0.00114469,85029.0,85028.0,0.57731801]
[1744923208293,0.00114469,85029.0,85028.0,0.00210138]
[1744923208525,0.00114469,85029.0,85028.0,0.37575801]
[1744923210315,0.00114469,85029.0,85028.0,0.71575801]
[1744923211241,0.00114469,85029.0,85028.0,0.57731801]
[1744923212327,0.35580646,85029.0,85028.0,0.00210138]
[1744923212529,0.13157923,85029.0,85028.0,0.00210138]
[1744923213094,0.22317923,85029.0,85028.0,0.00210138]
[1744923213311,0.23493992,85029.0,85022.0,0.58699285]
[1744923213508,0.13043454,85028.0,85024.0,0.23522528]
[1744923213712,0.13043454,85028.0,85026.0,0.24698285]
[1744923214185,0.13043454,85028.0,85026.0,0.0117611]
[1744923214384,0.01098663,85027.0,85026.0,0.0117611]
[1744923214522,0.13043454,85027.0,85026.0,0.0117611]
[1744923220892,0.11944791,85027.0,85026.0,0.0117611]
[1744923234179,0.13043909,85027.0,85026.0,0.0117611]
[1744923234769,0.13043909,85027.0,85026.0,10.0117611]
[1744923245079,0.11944791,85027.0,85026.0,10.0117611]
[1744923247245,0.13045698,85027.0,85026.0,10.0117611]
[1744923254613,0.11944791,85027.0,85026.0,10.0117611]
[1744923260897,0.1304565,85027.0,85026.0,10.0117611]
[1744923266554,0.11944791,85027.0,85026.0,10.0117611]
[1744923271289,0.00114469,85029.0,85027.0,0.2352194]
[1744923271473,0.00114469,85029.0,85027.0,0.23757135]
[1744923272033,0.00114469,85029.0,85028.0,0.34]
[1744923272464,0.00114469,85029.0,85028.0,0.3863]
[1744923276618,0.00114469,85029.0,85028.0,0.0463]
[1744923276813,0.00114469,85029.0,85028.0,0.04865174]
[1744923280940,0.00114469,85029.0,85028.0,0.0463]
[1744923284378,0.00114469,85029.0,85028.0,0.0413]
[1744923284594,0.00114469,85029.0,85028.0,0.04365174]
[1744923287978,0.00114469,85029.0,85028.0,0.38365174]
[1744923288182,0.00114469,85029.0,85028.0,0.3813]
[1744923288494,0.00114469,85029.0,85028.0,0.4285]
[1744923290828,0.00114469,85029.0,85028.0,0.4374521]
[1744923291469,0.00114469,85029.0,85028.0,0.4384521]
[1744923300536,0.00114469,85029.0,85028.0,0.5767321]
[1744923304419,0.00114469,85029.0,85028.0,0.341]
[1744923304647,0.00114469,85029.0,85028.0,0.001]
[1744923304900,0.00114469,85029.0,85028.0,0.23621663]
[1744923305556,0.00214469,85029.0,85028.0,0.23621663]
[1744923310335,0.05144469,85029.0,85028.0,0.23621663]
[1744923310881,0.05144469,85029.0,85028.0,0.001]
[1744923311906,0.10064469,85029.0,85028.0,0.001]
[1744923312811,0.2200926,85029.0,85028.0,0.001]
[1744923318803,0.23521663,85028.0,85026.0,9.77383707]
[1744923319017,0.11944791,85027.0,85026.0,9.77383707]
[1744923324180,0.11944791,85027.0,85026.0,9.54105489]
[1744923332537,0.00314469,85029.0,85027.0,0.2352194]
[1744923334908,0.01100378,85028.0,85027.0,0.2352194]
[1744923340397,0.01100378,85028.0,85026.0,9.55281599]
[1744923340852,0.01100378,85028.0,85026.0,9.78803544]
[1744923340975,0.01100378,85027.0,85026.0,9.78803544]
[1744923341495,0.01100378,85027.0,85026.0,9.55281599]
[1744923342981,0.00314469,85029.0,85027.0,0.2352194]
[1744923348942,0.00414469,85029.0,85027.0,0.2352194]
[1744923351159,0.00214469,85029.0,85027.0,0.2352194]
[1744923354123,0.00214469,85029.0,85027.0,0.07253072]
[1744923362432,0.00214469,85029.0,85026.0,9.55281599]
[1744923362910,0.00214469,85029.0,85026.0,9.78803666]
[1744923363319,0.00214469,85029.0,85026.0,9.54105489]
[1744923363320,0.23521663,85028.0,85026.0,9.54105489]
[1744923363547,0.00214469,85029.0,85026.0,9.54105489]
[1744923364288,0.00214469,85029.0,85027.0,0.2352194]
[1744923365619,0.01101144,85028.0,85027.0,0.2352194]
[1744923367495,0.01101144,85028.0,85026.0,9.55281599]
[1744923367709,0.01101144,85028.0,85026.0,9.78803633]
[1744923368164,0.01101144,85027.0,85026.0,9.78803633]
[1744923368364,0.41157875,85027.0,85026.0,9.54105489]
[1744923368516,0.46047875,85027.0,85026.0,9.54105489]
[1744923368743,0.4824998,85027.0,85026.0,9.54105489]
[1744923372426,0.8952998,85027.0,85026.0,9.54105489]
[1744923376617,0.87327875,85027.0,85026.0,9.54105489]
[1744923376949,0.77847875,85027.0,85026.0,9.54105489]
[1744923377559,0.80044611,85027.0,85026.0,9.54105489]
[1744923379642,0.77847875,85027.0,85026.0,9.54105489]
[1744923380378,0.54325935,85027.0,85026.0,9.54105489]
[1744923382976,0.56522592,85027.0,85026.0,9.54105489]
[1744923383756,0.54325935,85027.0,85026.0,9.54105489]
[1744923387551,0.5652303,85027.0,85026.0,9.54105489]
[1744923391633,0.5662303,85027.0,85026.0,9.54105489]
[1744923396705,0.54425935,85027.0,85026.0,9.54105489]
[1744923406611,0.56627731,85027.0,85026.0,9.54105489]
[1744923408634,0.56727731,85027.0,85026.0,9.54105489]
[1744923409345,0.54525935,85027.0,85026.0,9.54105489]
[1744923409565,0.56727959,85027.0,85026.0,9.54105489]
[1744923410492,0.56727959,85027.0,85026.0,9.33579775]
[1744923411160,0.56527959,85027.0,85026.0,9.33579775]
[1744923411363,0.56627959,85027.0,85026.0,9.33579775]
[1744923411773,0.15347959,85027.0,85026.0,9.33579775]
[1744923414750,0.15347959,85027.0,85026.0,9.12036938]
[1744923426136,0.15347959,85027.0,85026.0,8.91434173]
[1744923451011,0.13145935,85027.0,85026.0,8.91434173]
[1744923451785,0.13245935,85027.0,85026.0,8.91434173]
[1744923453522,0.01301144,85027.0,85026.0,9.24576389]
[1744923453746,0.01301144,85027.0,85026.0,9.24676389]
[1744923453969,0.002,85027.0,85026.0,9.24676389]
[1744923454449,0.002,85027.0,85026.0,9.58676389]
[1744923457245,0.102,85027.0,85026.0,9.58676389]
[1744923471309,0.1,85027.0,85026.0,9.58576389]
[1744923500648,0.1,85027.0,85026.0,9.72368389]
[1744923504211,0.1,85027.0,85026.0,9.67708389]
[1744923504431,0.1,85027.0,85026.0,9.62748389]
[1744923504858,0.101,85027.0,85026.0,9.41875285]
[1744923505285,0.101,85027.0,85026.0,9.28083285]
[1744923509089,0.102,85027.0,85026.0,9.04561069]
[1744923516463,0.102,85027.0,85026.0,8.70561069]
[1744923516885,0.1501,85027.0,85026.0,8.70561069]
[1744923518945,0.102,85027.0,85026.0,8.70561069]
[1744923530966,0.22144791,85027.0,85026.0,8.94083285]
[1744923533804,0.102,85027.0,85026.0,8.94083285]
[1744923535547,0.102,85027.0,85026.0,8.68144806]
[1744923541717,0.101,85027.0,85026.0,8.68144806]
[1744923559106,0.101,85027.0,85026.0,8.45579067]
[1744923559751,0.101,85027.0,85026.0,8.79579067]
[1744923559954,0.101,85027.0,85026.0,8.84189067]
[1744923563966,0.101,85027.0,85026.0,8.85086991]
[1744923575367,0.101,85027.0,85026.0,8.60306089]
[1744923577488,0.101,85027.0,85026.0,8.55696089]
[1744923581727,0.102,85027.0,85026.0,8.55696089]
[1744923591233,0.1,85027.0,85026.0,8.55696089]
[1744923591451,0.101,85027.0,85026.0,8.55696089]
[1744923608915,0.09486381,85027.0,85026.0,8.55696089]
[1744923619410,0.18836381,85027.0,85026.0,8.54798165]
[1744923624074,0.30781172,85027.0,85026.0,8.54798165]